[Event "4th Baskent University Open 2019"]
[Site "Ankara"]
[Date "2019.06.21"]
[Round "8"]
[White "Sarginalp, Tuna"]
[Black "Duru, Ipek"]
[Result "1-0"]
[ECO "C87"]
[WhiteElo "1630"]
[BlackElo "1551"]
[Annotator "NA"]
[PlyCount "93"]
[EventDate "2019.06.18"]
[EventType "swiss"]
[EventCountry "TUR"]
[SourceTitle "playchess.com"]
[Source "ChessBase"]
[SourceQuality "1"]
[TimeControl "5400+30"]

1. e4 {[%emt 0:04:30]} e5 {[%emt 0:00:30]} 2. Nf3 {[%emt 0:01:30]} Nc6 {[%emt 0:00:00]} 3. Bb5 {[%emt 0:00:30]} a6 {[%emt 0:00:00]} 4. Ba4 {[%emt 0:00:30]} Nf6 {[%emt 0:00:30]} 5. O-O {[%emt 0:00:30]} d6 {[%emt 0:00:30]} 6. Re1 {[%emt 0:00:30]} Be7 {[%emt 0:00:00]} 7. c3 {[%emt 0:01:30]} b5 {[%emt 0:00:00]} 8. Bc2 {[%emt 0:02:30]} O-O {[%emt 0:01:30]} 9. h3 {[%emt 0:00:30]} Nb8 {[%emt 0:00:30]} 10. d4 {[%emt 0:01:30]} Nbd7 {[%emt 0:00:30]} 11. Nbd2 {[%emt 0:00:00]} Re8 {[%emt 0:00:30]} 12. Nf1 {[%emt 0:02:00]} Bf8 {[%emt 0:00:00]} 13. Ng3 {[%emt 0:00:00]} g6 {[%emt 0:00:00]} 14. Bg5 {[%emt 0:04:00]} h6 {[%emt 0:01:30]} 15. Be3 {[%emt 0:00:30]} Bb7 {[%emt 0:00:30]} 16. Qd2 {[%emt 0:03:30]} Kh7 {[%emt 0:01:30]} 17. d5 {[%emt 0:02:30]} c5 {[%emt 0:03:30]} 18. Nh2 {[%emt 0:06:30]} Rc8 {[%emt 0:04:30]} 19. Ng4 {[%emt 0:05:30]} Ng8 {[%emt 0:05:30]} 20. Rf1 {[%emt 0:04:30]} Rc7 {[%emt 0:06:30]} 21. f4 {[%emt 0:03:30]} Ndf6 {[%emt 0:05:30]} 22. Nxf6+ {[%emt 0:03:30]} Nxf6 {[%emt 0:03:30]} 23. fxe5 {[%emt 0:00:30]} dxe5 {[%emt 0:05:30]} 24. Rf3 {[%emt 0:02:30]} Qd6 {[%emt 0:02:30]} 25. Raf1 {[%emt 0:02:30]} Bg7 {[%emt 0:00:30]} 26. Qf2 {[%emt 0:01:30]} Ng8 {[%emt 0:04:30]} 27. Rxf7 {[%emt 0:03:30]} Rxf7 {[%emt 0:00:30]} 28. Qxf7 {[%emt 0:00:30]} Re7 {[%emt 0:00:30]} 29. Qf2 {[%emt 0:03:30]} Rc7 {[%emt 0:00:00]} 30. Ne2 {[%emt 0:07:30]} Bc8 {[%emt 0:04:00]} 31. Nc1 {[%emt 0:08:30]} Nf6 {[%emt 0:02:30]} 32. Nb3 {[%emt 0:05:30]} Nd7 {[%emt 0:00:30]} 33. Na5 {[%emt 0:08:16]} Nf6 {[%emt 0:09:30]} 34. Nc6 {[%emt 0:01:30]} Bb7 {[%emt 0:01:30]} 35. Bxc5 {[%emt 0:00:15]} Qd7 {[%emt 0:01:30]} 36. Nxe5 {[%emt 0:01:34]} Qe8 {[%emt 0:00:30]} 37. Bd4 {[%emt 0:06:53]} Nxe4 {[%emt 0:07:30]} 38. Bxe4 {[%emt 0:00:27]} Bxe5 {[%emt 0:00:30]} 39. Bxg6+ {[%emt 0:01:08]} Qxg6 {[%emt 0:00:30]} 40. Bxe5 {[%emt 0:00:07]} Re7 {[%emt 0:00:30]} 41. Qd4 {[%emt 0:02:08]} Qg5 {[%emt 0:01:30]} 42. Bf6 {[%emt 0:02:29]} Qe3+ {[%emt 0:00:00]} 43. Qxe3 {[%emt 0:00:12]} Rxe3 {[%emt 0:00:00]} 44. Bd4 {[%emt 0:00:43]} Re7 {[%emt 0:00:00]} 45. d6 {[%emt 0:00:00]} Rd7 {[%emt 0:00:00]} 46. Rf6 {[%emt 0:00:09]} Bd5 {[%emt 0:00:30]} 47. b3 {[%emt 0:00:51]} 1-0

[Event "4th Baskent University Open 2019"]
[Site "Ankara"]
[Date "2019.06.21"]
[Round "8"]
[White "Elma, Muge"]
[Black "Sahin, Arda"]
[Result "1/2-1/2"]
[ECO "D37"]
[WhiteElo "1618"]
[BlackElo "1710"]
[Annotator "NA"]
[PlyCount "41"]
[EventDate "2019.06.18"]
[EventType "swiss"]
[EventCountry "TUR"]
[SourceTitle "playchess.com"]
[Source "ChessBase"]
[SourceQuality "1"]
[TimeControl "5400+30"]

1. d4 {[%emt 0:00:30]} d5 {[%emt 0:00:30]} 2. c4 {[%emt 0:00:30]} e6 {[%emt 0:00:00]} 3. Nf3 {[%emt 0:00:00]} a6 {[%emt 0:00:00]} 4. cxd5 {[%emt 0:00:00]} exd5 {[%emt 0:00:00]} 5. Nc3 {[%emt 0:00:30]} Nf6 {[%emt 0:00:00]} 6. Qc2 {[%emt 0:00:00]} Bd6 {[%emt 0:01:30]} 7. Bg5 {[%emt 0:01:00]} Be6 {[%emt 0:00:30]} 8. e3 {[%emt 0:27:30]} Nbd7 {[%emt 0:00:30]} 9. Bd3 {[%emt 0:00:00]} c6 {[%emt 0:00:30]} 10. O-O {[%emt 0:01:00]} h6 {[%emt 0:00:30]} 11. Bh4 {[%emt 0:00:30]} Qc7 {[%emt 0:00:30]} 12. Bg3 {[%emt 0:00:30]} O-O {[%emt 0:06:30]} 13. Bxd6 {[%emt 0:02:30]} Qxd6 {[%emt 0:00:30]} 14. h3 {[%emt 0:00:00]} Rfc8 {[%emt 0:15:30]} 15. Rfd1 {[%emt 0:07:00]} c5 {[%emt 0:03:30]} 16. dxc5 {[%emt 0:02:30]} Nxc5 {[%emt 0:00:30]} 17. Qe2 {[%emt 0:05:30]} Qb6 {[%emt 0:13:30]} 18. Nd4 {[%emt 0:01:30]} Rc7 {[%emt 0:11:30]} 19. Rac1 {[%emt 0:06:30]} Rac8 {[%emt 0:00:30]} 20. Rc2 {[%emt 0:01:30]} Nce4 {[%emt 0:03:30]} 21. Rdc1 {[%emt 0:02:30]} 1/2-1/2

[Event "4th Baskent University Open 2019"]
[Site "Ankara"]
[Date "2019.06.21"]
[Round "8"]
[White "Ilkbahar, Nimet Seray"]
[Black "Cevizci, Yusuf Baran"]
[Result "0-1"]
[ECO "A01"]
[WhiteElo "1481"]
[BlackElo "1670"]
[Annotator "NA"]
[PlyCount "70"]
[EventDate "2019.06.18"]
[EventType "swiss"]
[EventCountry "TUR"]
[SourceTitle "playchess.com"]
[Source "ChessBase"]
[SourceQuality "1"]
[TimeControl "5400+30"]

1. b3 {[%emt 0:00:30]} d5 {[%emt 0:04:30]} 2. Bb2 {[%emt 0:00:30]} c5 {[%emt 0:00:30]} 3. f4 {[%emt 0:00:00]} Bg4 {[%emt 0:00:30]} 4. Nf3 {[%emt 0:02:00]} Bxf3 {[%emt 0:00:30]} 5. exf3 {[%emt 0:00:30]} Nc6 {[%emt 0:00:30]} 6. Bb5 {[%emt 0:05:30]} Nf6 {[%emt 0:01:30]} 7. Qe2 {[%emt 0:02:30]} Qd7 {[%emt 0:13:30]} 8. g3 {[%emt 0:10:30]} a6 {[%emt 0:00:30]} 9. Bxc6 {[%emt 0:00:30]} Qxc6 {[%emt 0:00:30]} 10. Nc3 {[%emt 0:02:30]} g6 {[%emt 0:01:30]} 11. O-O {[%emt 0:13:30]} Bg7 {[%emt 0:00:30]} 12. Nd1 {[%emt 0:06:30]} O-O {[%emt 0:01:30]} 13. Ne3 {[%emt 0:01:30]} e6 {[%emt 0:01:30]} 14. Ng4 {[%emt 0:12:30]} Nxg4 {[%emt 0:01:30]} 15. Bxg7 {[%emt 0:00:30]} Nxh2 {[%emt 0:19:30]} 16. Bf6 {[%emt 0:05:30]} Nxf1 {[%emt 0:00:30]} 17. Qxf1 {[%emt 0:01:30]} Qd6 {[%emt 0:01:30]} 18. Qh3 {[%emt 0:00:30]} h5 {[%emt 0:01:30]} 19. Re1 {[%emt 0:09:30]} Rfc8 {[%emt 0:02:30]} 20. Qh4 {[%emt 0:05:40]} Kf8 {[%emt 0:02:30]} 21. Qg5 {[%emt 0:07:32]} Ke8 {[%emt 0:00:00]} 22. f5 {[%emt 0:00:39]} gxf5 {[%emt 0:00:00]} 23. Qg8+ {[%emt 0:04:08]} Qf8 {[%emt 0:00:00]} 24. Rxe6+ {[%emt 0:02:21]} Kd7 {[%emt 0:00:00]} 25. Qxf8 {[%emt 0:01:13]} Rxf8 {[%emt 0:00:30]} 26. Re7+ {[%emt 0:00:00]} Kc6 {[%emt 0:00:00]} 27. Re5 {[%emt 0:00:00]} Rfe8 {[%emt 0:00:00]} 28. Rxf5 {[%emt 0:00:31]} Re1+ {[%emt 0:00:30]} 29. Kf2 {[%emt 0:00:26]} Rae8 {[%emt 0:00:00]} 30. g4 {[%emt 0:01:20]} R8e2+ {[%emt 0:00:00]} 31. Kg3 {[%emt 0:00:09]} Rg1+ {[%emt 0:00:00]} 32. Kh4 {[%emt 0:01:31]} hxg4 {[%emt 0:01:00]} 33. fxg4 {[%emt 0:00:07]} Rxd2 {[%emt 0:00:00]} 34. Bc3 {[%emt 0:00:52]} Rxc2 {[%emt 0:01:00]} 35. Rf6+ {[%emt 0:00:09]} Kd7 {[%emt 0:00:00]} 0-1

[Event "4th Baskent University Open 2019"]
[Site "Ankara"]
[Date "2019.06.21"]
[Round "8"]
[White "Gulbas, Isa"]
[Black "Yanikoglu, Omer"]
[Result "0-1"]
[ECO "D02"]
[WhiteElo "1451"]
[BlackElo "1665"]
[Annotator "NA"]
[PlyCount "128"]
[EventDate "2019.06.18"]
[EventType "swiss"]
[EventCountry "TUR"]
[SourceTitle "playchess.com"]
[Source "ChessBase"]
[SourceQuality "1"]
[TimeControl "5400+30"]

1. d4 {[%emt 0:00:30]} d5 {[%emt 0:00:30]} 2. Nf3 {[%emt 0:00:00]} Nf6 {[%emt 0:00:00]} 3. Bf4 {[%emt 0:00:00]} e6 {[%emt 0:00:00]} 4. e3 {[%emt 0:00:30]} Be7 {[%emt 0:00:30]} 5. h3 {[%emt 0:00:00]} Nbd7 {[%emt 0:00:00]} 6. Bd3 {[%emt 0:00:00]} O-O {[%emt 0:01:00]} 7. O-O {[%emt 0:00:30]} c5 {[%emt 0:00:30]} 8. c3 {[%emt 0:00:00]} b6 {[%emt 0:02:30]} 9. Nbd2 {[%emt 0:04:00]} Bb7 {[%emt 0:02:30]} 10. Ne5 {[%emt 0:00:30]} Ne4 {[%emt 0:02:30]} 11. f3 {[%emt 0:18:30]} Nxd2 {[%emt 0:01:30]} 12. Qxd2 {[%emt 0:00:00]} cxd4 {[%emt 0:00:30]} 13. exd4 {[%emt 0:00:00]} Nxe5 {[%emt 0:00:00]} 14. Bxe5 {[%emt 0:00:30]} Bd6 {[%emt 0:02:00]} 15. f4 {[%emt 0:01:30]} f6 {[%emt 0:00:30]} 16. Bxd6 {[%emt 0:00:00]} Qxd6 {[%emt 0:00:30]} 17. Rae1 {[%emt 0:00:00]} Rae8 {[%emt 0:00:30]} 18. Qc2 {[%emt 0:00:30]} f5 {[%emt 0:02:30]} 19. Re5 {[%emt 0:00:30]} Rf6 {[%emt 0:00:30]} 20. Rfe1 {[%emt 0:01:30]} Ref8 {[%emt 0:01:30]} 21. R1e3 {[%emt 0:04:30]} Bc8 {[%emt 0:00:30]} 22. Qe2 {[%emt 0:02:30]} g6 {[%emt 0:05:30]} 23. Ba6 {[%emt 0:02:30]} Bd7 {[%emt 0:00:30]} 24. Bb5 {[%emt 0:06:30]} Bc8 {[%emt 0:00:30]} 25. Bd3 {[%emt 0:12:30]} Bd7 {[%emt 0:00:30]} 26. Qf2 {[%emt 0:10:30]} b5 {[%emt 0:01:30]} 27. Qe2 {[%emt 0:09:30]} Qc6 {[%emt 0:00:30]} 28. a3 {[%emt 0:00:30]} a5 {[%emt 0:00:30]} 29. Bc2 {[%emt 0:04:30]} Rb8 {[%emt 0:00:30]} 30. Bb3 {[%emt 0:03:18]} Qb6 {[%emt 0:01:30]} 31. Qd2 {[%emt 0:03:30]} Rff8 {[%emt 0:00:30]} 32. Kh2 {[%emt 0:00:30]} Rfc8 {[%emt 0:00:30]} 33. Qd3 {[%emt 0:04:25]} Rc7 {[%emt 0:03:30]} 34. Re2 {[%emt 0:00:45]} b4 {[%emt 0:06:30]} 35. axb4 {[%emt 0:00:10]} Bb5 {[%emt 0:00:30]} 36. Qe3 {[%emt 0:01:44]} Bxe2 {[%emt 0:01:30]} 37. Rxe6 {[%emt 0:00:55]} Qb5 {[%emt 0:00:30]} 38. Qxe2 {[%emt 0:00:18]} Qxe2 {[%emt 0:00:30]} 39. Rxe2 {[%emt 0:00:02]} axb4 {[%emt 0:00:30]} 40. Bxd5+ {[%emt 0:00:06]} Kg7 {[%emt 0:00:00]} 41. c4 {[%emt 0:00:07]} Rd8 {[%emt 0:02:00]} 42. Kg3 {[%emt 0:01:31]} Kf8 {[%emt 0:01:30]} 43. Re3 {[%emt 0:03:55]} Re7 {[%emt 0:00:30]} 44. Rb3 {[%emt 0:00:01]} Rb8 {[%emt 0:00:30]} 45. Kf3 {[%emt 0:00:07]} Re1 {[%emt 0:00:00]} 46. Re3 {[%emt 0:00:41]} Rd1 {[%emt 0:02:00]} 47. Ke2 {[%emt 0:01:02]} Rxd4 {[%emt 0:04:30]} 48. g3 {[%emt 0:00:06]} Re8 {[%emt 0:00:30]} 49. b3 {[%emt 0:02:52]} Rxe3+ {[%emt 0:00:30]} 50. Kxe3 {[%emt 0:00:02]} Rd1 {[%emt 0:00:30]} 51. g4 {[%emt 0:01:10]} fxg4 {[%emt 0:02:30]} 52. hxg4 {[%emt 0:00:00]} Rg1 {[%emt 0:01:30]} 53. g5 {[%emt 0:00:23]} Rd1 {[%emt 0:01:30]} 54. Ke4 {[%emt 0:00:12]} Ke7 {[%emt 0:00:30]} 55. Ke5 {[%emt 0:00:11]} Rc1 {[%emt 0:01:30]} 56. Bg8 {[%emt 0:04:01]} Kf8 {[%emt 0:01:30]} 57. Bd5 {[%emt 0:00:06]} Rc3 {[%emt 0:00:30]} 58. Kd4 {[%emt 0:02:44]} Rxb3 {[%emt 0:00:30]} 59. c5 {[%emt 0:00:21]} Rc3 {[%emt 0:03:30]} 60. Bc4 {[%emt 0:01:23]} Ke7 {[%emt 0:00:30]} 61. Bg8 {[%emt 0:00:02]} Rh3 {[%emt 0:00:30]} 62. Bc4 {[%emt 0:00:11]} b3 {[%emt 0:01:30]} 63. Bd3 {[%emt 0:00:03]} b2 {[%emt 0:00:00]} 64. Bb1 {[%emt 0:00:26]} Rh1 {[%emt 0:00:00]} 0-1

[Event "4th Baskent University Open 2019"]
[Site "Ankara"]
[Date "2019.06.22"]
[Round "9"]
[White "Bernadskiy, Vitaliy"]
[Black "Koksal, Ege"]
[Result "1-0"]
[ECO "C42"]
[WhiteElo "2578"]
[BlackElo "2363"]
[Annotator "ChessBase"]
[PlyCount "129"]
[EventDate "2019.06.18"]
[EventType "swiss"]
[EventCountry "TUR"]
[SourceTitle "playchess.com"]
[Source "ChessBase"]
[SourceQuality "1"]
[TimeControl "5400+30"]

1. e4 e5 2. Nf3 Nf6 3. Nxe5 d6 4. Nf3 Nxe4 5. Qe2 Qe7 6. d3 Nf6 7. Bg5 Qxe2+ 8. Bxe2 Be7 9. Nc3 O-O 10. O-O-O h6 11. Bh4 c6 12. Rde1 Re8 13. Bd1 Kf8 14. h3 Na6 15. g4 Nc7 16. Bg3 Ne6 17. Ne4 Rd8 18. c3 Nc5 19. Bc2 a5 20. Nxf6 Bxf6 21. d4 Na6 22. Nd2 Be6 23. Bb3 Nc7 24. Bxe6 Nxe6 25. f4 Nc7 26. h4 Re8 27. Ne4 Red8 28. f5 Be7 29. g5 Kg8 30. gxh6 gxh6 31. Bf4 Kh7 32. Ng5+ hxg5 33. hxg5+ Kg7 34. Rxe7 Nd5 35. Re4 Nxf4 36. Rxf4 Rh8 37. Rfh4 Rxh4 38. Rxh4 a4 39. d5 c5 40. Rh6 Re8 41. Rxd6 Re5 42. g6 Rxf5 43. gxf7 Rf1+ 44. Kd2 Kxf7 45. Rb6 a3 46. Kd3 Rf4 47. bxa3 Ke7 48. c4 Rf3+ 49. Kc2 Rxa3 50. Rxb7+ Kd6 51. Kb2 Rh3 52. Rb3 Rh4 53. Rc3 Ke5 54. a4 Kd4 55. a5 Rh8 56. Rc1 Ra8 57. d6 Ke5 58. Rd1 Ke6 59. d7 Ke7 60. d8=Q+ Rxd8 61. Rxd8 Kxd8 62. Kc2 Kc7 63. Kd3 Kd6 64. Ke4 Ke6 65. a6 1-0

[Event "4th Baskent University Open 2019"]
[Site "Ankara"]
[Date "2019.06.22"]
[Round "9"]
[White "Iskandarov, Misratdin"]
[Black "Nagy, Gabor"]
[Result "1-0"]
[ECO "C58"]
[WhiteElo "2502"]
[BlackElo "2471"]
[Annotator "ChessBase"]
[PlyCount "85"]
[EventDate "2019.06.18"]
[EventType "swiss"]
[EventCountry "TUR"]
[SourceTitle "playchess.com"]
[Source "ChessBase"]
[SourceQuality "1"]
[TimeControl "5400+30"]

1. e4 {[%emt 0:00:30]} e5 {[%emt 0:00:30]} 2. Nf3 {[%emt 0:00:30]} Nc6 {[%emt 0:00:00]} 3. Bc4 {[%emt 0:00:00]} Nf6 {[%emt 0:00:00]} 4. Ng5 {[%emt 0:00:00]} d5 {[%emt 0:00:30]} 5. exd5 {[%emt 0:00:30]} Na5 {[%emt 0:00:30]} 6. Bb5+ {[%emt 0:00:00]} c6 {[%emt 0:00:30]} 7. dxc6 {[%emt 0:00:00]} bxc6 {[%emt 0:00:00]} 8. Qf3 {[%emt 0:01:30]} Rb8 {[%emt 0:00:00]} 9. Bd3 {[%emt 0:00:00]} Be7 {[%emt 0:01:30]} 10. O-O {[%emt 0:01:00]} O-O {[%emt 0:00:30]} 11. Nc3 {[%emt 0:00:30]} h6 {[%emt 0:02:30]} 12. Nge4 {[%emt 0:00:30]} Nd5 {[%emt 0:00:30]} 13. Ng3 {[%emt 0:00:30]} Rb4 {[%emt 0:06:30]} 14. Be4 {[%emt 0:05:30]} Nf4 {[%emt 0:06:30]} 15. a3 {[%emt 0:07:30]} Rd4 {[%emt 0:01:30]} 16. Nf5 {[%emt 0:08:30]} Bxf5 {[%emt 0:03:30]} 17. Bxf5 {[%emt 0:00:30]} g6 {[%emt 0:00:30]} 18. Bh3 {[%emt 0:00:30]} f5 {[%emt 0:03:30]} 19. Ne2 {[%emt 0:03:30]} Nxh3+ {[%emt 0:02:30]} 20. Qxh3 {[%emt 0:06:30]} Rh4 {[%emt 0:00:30]} 21. Qc3 {[%emt 0:02:30]} Bd6 {[%emt 0:11:30]} 22. b4 {[%emt 0:04:30]} f4 {[%emt 0:04:30]} 23. f3 {[%emt 0:12:30]} Rf5 {[%emt 0:10:30]} 24. bxa5 {[%emt 0:04:30]} Rfh5 {[%emt 0:01:30]} 25. Kf2 {[%emt 0:02:30]} Rxh2 {[%emt 0:00:00]} 26. Rg1 {[%emt 0:00:00]} Qe7 {[%emt 0:07:00]} 27. Kf1 {[%emt 0:04:00]} Bc5 {[%emt 0:04:30]} 28. d4 {[%emt 0:00:30]} exd4 {[%emt 0:00:30]} 29. Qd3 {[%emt 0:00:30]} Rf5 {[%emt 0:00:30]} 30. Bxf4 {[%emt 0:00:30]} Rh4 {[%emt 0:00:30]} 31. Bg3 {[%emt 0:00:00]} Re4 {[%emt 0:00:00]} 32. Bf2 {[%emt 0:00:00]} Re6 {[%emt 0:00:00]} 33. Ng3 {[%emt 0:00:30]} Rf7 {[%emt 0:00:30]} 34. Re1 {[%emt 0:00:30]} Rxe1+ {[%emt 0:00:30]} 35. Bxe1 {[%emt 0:00:30]} Kh7 {[%emt 0:00:00]} 36. Rh1 {[%emt 0:00:00]} Bd6 {[%emt 0:00:00]} 37. Ne4 {[%emt 0:01:00]} Bf4 {[%emt 0:00:30]} 38. Qxd4 {[%emt 0:00:30]} c5 {[%emt 0:00:30]} 39. Qc4 {[%emt 0:00:30]} h5 {[%emt 0:00:30]} 40. Bc3 {[%emt 0:00:30]} Rf5 {[%emt 0:00:30]} 41. g4 {[%emt 0:01:30]} Rf8 {[%emt 0:00:30]} 42. gxh5 {[%emt 0:00:30]} g5 {[%emt 0:00:00]} 43. Qd3 {[%emt 0:00:30]} 1-0

[Event "4th Baskent University Open 2019"]
[Site "Ankara"]
[Date "2019.06.22"]
[Round "9"]
[White "Mammadov, Zaur"]
[Black "Annaberdiev, Meilis"]
[Result "0-1"]
[ECO "B22"]
[WhiteElo "2428"]
[BlackElo "2532"]
[Annotator "ChessBase"]
[PlyCount "128"]
[EventDate "2019.06.18"]
[EventType "swiss"]
[EventCountry "TUR"]
[SourceTitle "playchess.com"]
[Source "ChessBase"]
[SourceQuality "1"]
[TimeControl "5400+30"]

1. e4 c5 2. c3 Nf6 3. e5 Nd5 4. Nf3 Nc6 5. d4 cxd4 6. cxd4 d6 7. Bc4 dxe5 8. dxe5 Be6 9. Qe2 g6 10. O-O Nc7 11. Nc3 Bg7 12. Rd1 Qc8 13. Bg5 O-O 14. Rac1 h6 15. Bh4 Bxc4 16. Qxc4 Qe6 17. Qxe6 Nxe6 18. Nd5 g5 19. Bg3 Rfd8 20. b4 a6 21. a4 Kf8 22. h3 Rac8 23. Kf1 Nb8 24. Rxc8 Rxc8 25. b5 Rd8 26. Ke1 Nc5 27. h4 Ne4 28. hxg5 hxg5 29. e6 fxe6 30. Nc7 Rxd1+ 31. Kxd1 Kf7 32. Ke2 axb5 33. axb5 Nd7 34. Ke3 Nxg3 35. fxg3 Bf6 36. g4 Ne5 37. Nxe5+ Bxe5 38. Na8 Bh2 39. Ke4 Bg1 40. Nc7 Bb6 41. Na8 Bc5 42. Nc7 Bf2 43. Kf3 Bb6 44. Na8 Ba5 45. Ke4 Ke8 46. Kd4 Kd7 47. Kc5 Bc7 48. Kd4 Bd8 49. Kc5 Kc8 50. Nb6+ Bxb6+ 51. Kxb6 e5 52. Kc5 e6 53. Kc4 Kc7 54. Kc5 e4 55. b6+ Kd7 56. Kd4 Kc6 57. Kxe4 Kxb6 58. Ke5 Kc5 59. Kf6 b5 60. Kxg5 b4 61. Kf6 b3 62. g5 b2 63. g6 b1=Q 64. g4 Qe4 0-1

[Event "4th Baskent University Open 2019"]
[Site "Ankara"]
[Date "2019.06.22"]
[Round "9"]
[White "Can, Isik"]
[Black "Odeev, Handszar"]
[Result "1/2-1/2"]
[ECO "B56"]
[WhiteElo "2379"]
[BlackElo "2386"]
[Annotator "NA"]
[PlyCount "53"]
[EventDate "2019.06.18"]
[EventType "swiss"]
[EventCountry "TUR"]
[SourceTitle "playchess.com"]
[Source "ChessBase"]
[SourceQuality "1"]
[TimeControl "5400+30"]

1. e4 {[%emt 0:00:30]} c5 {[%emt 0:00:30]} 2. Nf3 {[%emt 0:00:00]} d6 {[%emt 0:01:30]} 3. d4 {[%emt 0:00:00]} cxd4 {[%emt 0:00:00]} 4. Nxd4 {[%emt 0:00:30]} Nf6 {[%emt 0:00:00]} 5. Nc3 {[%emt 0:00:00]} h6 {[%emt 0:05:30]} 6. Be3 {[%emt 0:03:00]} a6 {[%emt 0:00:00]} 7. f3 {[%emt 0:02:30]} e6 {[%emt 0:07:00]} 8. Qd2 {[%emt 0:02:30]} b5 {[%emt 0:00:30]} 9. O-O-O {[%emt 0:06:30]} b4 {[%emt 0:11:30]} 10. Na4 {[%emt 0:10:30]} Qa5 {[%emt 0:12:30]} 11. b3 {[%emt 0:03:30]} Bd7 {[%emt 0:00:00]} 12. a3 {[%emt 0:05:30]} Bxa4 {[%emt 0:02:00]} 13. axb4 {[%emt 0:00:00]} Qc7 {[%emt 0:00:30]} 14. bxa4 {[%emt 0:00:00]} Nbd7 {[%emt 0:01:30]} 15. b5 {[%emt 0:06:30]} d5 {[%emt 0:01:30]} 16. bxa6 {[%emt 0:01:30]} Ba3+ {[%emt 0:14:30]} 17. Kb1 {[%emt 0:00:00]} Bc5 {[%emt 0:12:30]} 18. Bb5 {[%emt 0:21:00]} O-O {[%emt 0:00:30]} 19. Nb3 {[%emt 0:10:30]} Bxe3 {[%emt 0:02:30]} 20. Qxe3 {[%emt 0:00:30]} Rfc8 {[%emt 0:00:00]} 21. Rc1 {[%emt 0:05:30]} Ne5 {[%emt 0:02:00]} 22. Nd2 {[%emt 0:02:53]} Qa5 {[%emt 0:03:30]} 23. c3 {[%emt 0:01:13]} Rcb8 {[%emt 0:02:04]} 24. Nb3 {[%emt 0:00:28]} Rxb5 {[%emt 0:04:15]} 25. axb5 {[%emt 0:00:37]} Qxb5 {[%emt 0:00:05]} 26. Kc2 {[%emt 0:00:02]} dxe4 {[%emt 0:00:28]} 27. Ra1 {[%emt 0:06:09]} 1/2-1/2

[Event "4th Baskent University Open 2019"]
[Site "Ankara"]
[Date "2019.06.22"]
[Round "9"]
[White "Simantsev, Mikhail"]
[Black "Erdogan, Anil Berk"]
[Result "1/2-1/2"]
[ECO "A61"]
[WhiteElo "2371"]
[BlackElo "2087"]
[Annotator "NA"]
[PlyCount "199"]
[EventDate "2019.06.18"]
[EventType "swiss"]
[EventCountry "TUR"]
[SourceTitle "playchess.com"]
[Source "ChessBase"]
[SourceQuality "1"]
[TimeControl "5400+30"]

1. d4 Nf6 2. c4 c5 3. d5 e6 4. Nc3 exd5 5. cxd5 d6 6. Nf3 g6 7. Bf4 a6 8. a4 Bg7 9. h3 O-O 10. e3 Ne8 11. Be2 Nd7 12. O-O Rb8 13. a5 f5 14. Nd2 Ne5 15. Bh2 Bd7 16. Qc2 Nc7 17. Nc4 Nxc4 18. Bxc4 b5 19. axb6 Rxb6 20. b3 Qf6 21. Na4 Bxa4 22. Rxa4 Qc3 23. Qe2 Be5 24. g3 Qb2 25. Qxb2 Bxb2 26. g4 Kg7 27. Kg2 Re8 28. gxf5 gxf5 29. Kf3 Be5 30. Rg1+ Kf6 31. Bxe5+ Rxe5 32. Rd1 h6 33. Raa1 Rb8 34. Rg1 Ree8 35. Rg3 Rg8 36. Kf4 Rxg3 37. fxg3 h5 38. e4 fxe4 39. Kxe4 Re8+ 40. Kf3 Re5 41. g4 h4 42. Rd1 Kg5 43. Rd3 Nb5 44. Kf2 Nd4 45. b4 Re2+ 46. Kf1 Rb2 47. bxc5 dxc5 48. Bxa6 Kf4 49. d6 Rb1+ 50. Kf2 Rb2+ 51. Ke1 Rb6 52. d7 Rd6 53. Bb5 c4 54. Bxc4 Rxd7 55. Kf2 Rd8 56. Bb3 Rd6 57. Bd1 Rd8 58. Ba4 Rd6 59. Rd1 Rd8 60. Kg2 Rd6 61. Bc2 Rd8 62. Rf1+ Kg5 63. Rd1 Kf4 64. Rd2 Rd6 65. Rf2+ Kg5 66. Bd3 Rf6 67. Rd2 Rd6 68. Rd1 Kf4 69. Rf1+ Kg5 70. Rf8 Rb6 71. Be4 Rb2+ 72. Kf1 Rd2 73. Rf7 Rb2 74. Rd7 Rb4 75. Bd5 Rb2 76. Be4 Rb4 77. Bd3 Kf4 78. Rf7+ Ke3 79. Bh7 Nf3 80. Rc7 Ra4 81. Rc3+ Kf4 82. Ke2 Ra2+ 83. Bc2 Nd4+ 84. Kd3 Nxc2 85. Rxc2 Ra1 86. Kd4 Rd1+ 87. Kc4 Rd8 88. Rc3 Rd7 89. Rd3 Rc7+ 90. Kd4 Rc8 91. Kd5 Rd8+ 92. Kc4 Rc8+ 93. Kd4 Rc7 94. Rc3 Rd7+ 95. Kc4 Rd8 96. Rd3 Rc8+ 97. Kd4 Rc7 98. Rb3 Rd7+ 99. Kc4 Rd8 100. Rd3 1/2-1/2

[Event "4th Baskent University Open 2019"]
[Site "Ankara"]
[Date "2019.06.22"]
[Round "9"]
[White "Arat, Ufuk Sezen"]
[Black "Maghalashvili, Davit"]
[Result "1/2-1/2"]
[ECO "A46"]
[WhiteElo "2368"]
[BlackElo "2500"]
[Annotator "ChessBase"]
[PlyCount "195"]
[EventDate "2019.06.18"]
[EventType "swiss"]
[EventCountry "TUR"]
[SourceTitle "playchess.com"]
[Source "ChessBase"]
[SourceQuality "1"]
[TimeControl "5400+30"]

1. d4 Nf6 2. Nf3 d6 3. Nbd2 Bf5 4. Nh4 Bd7 5. e4 e5 6. dxe5 dxe5 7. Nf5 Bc6 8. Bd3 g6 9. Ne3 Nbd7 10. Qe2 Bh6 11. Nec4 a5 12. a4 O-O 13. b3 Re8 14. Bb2 Bg7 15. c3 Nh5 16. g3 Nc5 17. Bc2 Qd7 18. Ba3 Bf8 19. O-O b6 20. f3 Qh3 21. Ne3 Nf6 22. Ndc4 h5 23. Rfd1 Qe6 24. h4 Rad8 25. Kh2 Be7 26. Rxd8 Rxd8 27. Rd1 Rxd1 28. Qxd1 Bd7 29. Kg1 Qh3 30. Nf1 Qe6 31. Nfe3 Bc6 32. Kh2 Nb7 33. b4 Bd7 34. Kg1 axb4 35. cxb4 b5 36. axb5 Bxb5 37. Bb3 Qh3 38. Qe1 Nd7 39. Bb2 c5 40. Nd5 Bd8 41. Nxe5 Nxe5 42. Bxe5 cxb4 43. Bd4 Na5 44. Nf4 Qd7 45. Bd5 Nc6 46. Bb2 Qa7+ 47. Kh2 Ne7 48. Bb3 Qc5 49. e5 Bc4 50. Bxc4 Qxc4 51. Qd2 Bb6 52. e6 fxe6 53. Qd6 Kf7 54. Qxb6 Qc2+ 55. Kh3 Qxb2 56. Qxe6+ Kf8 57. Qd6 Qb1 58. Ne6+ Kf7 59. Ng5+ Ke8 60. Qb8+ Kd7 61. Qb7+ Kd8 62. Ne6+ Ke8 63. Qb5+ Nc6 64. Qxc6+ Ke7 65. g4 Qh1+ 66. Kg3 Qe1+ 67. Kf4 Qxe6 68. Qb7+ Ke8 69. Qxb4 Qf6+ 70. Kg3 Qe5+ 71. Kh3 hxg4+ 72. Kxg4 Qf5+ 73. Kg3 Kf7 74. Qb7+ Kf6 75. Qe4 Qc5 76. Kh3 Qc1 77. Qd4+ Kf7 78. Kg4 Qc8+ 79. Kg3 Qf5 80. Qh8 Qb1 81. Qe5 Qg1+ 82. Kh3 Qf1+ 83. Kg4 Qg1+ 84. Qg3 Qd1 85. Qc7+ Kf6 86. Qb6+ Kf7 87. Qc7+ Kf6 88. Qc6+ Kf7 89. Qc4+ Kf6 90. Qc3+ Kf7 91. Kf4 Qd6+ 92. Qe5 Qd2+ 93. Kg3 Qd1 94. Qc5 Kf6 95. h5 gxh5 96. Qxh5 Qg1+ 97. Kf4 Qd4+ 98. Kg3 1/2-1/2

[Event "4th Baskent University Open 2019"]
[Site "Ankara"]
[Date "2019.06.22"]
[Round "9"]
[White "Guliev, Logman"]
[Black "Saraci, Nderim"]
[Result "0-1"]
[ECO "C76"]
[WhiteElo "2320"]
[BlackElo "2377"]
[Annotator "ChessBase"]
[PlyCount "107"]
[EventDate "2019.06.18"]
[EventType "swiss"]
[EventCountry "TUR"]
[SourceTitle "playchess.com"]
[Source "ChessBase"]
[SourceQuality "1"]
[TimeControl "5400+30"]

1. e4 e5 2. Nf3 Nc6 3. Bb5 g6 4. O-O Bg7 5. c3 a6 6. Ba4 d6 7. d4 Bd7 8. Bg5 f6 9. Be3 Nh6 10. c4 Ng4 11. Bc1 exd4 12. Nxd4 Nxd4 13. Bxd7+ Qxd7 14. Qxd4 f5 15. Qd5 c6 16. Qd3 O-O 17. Nc3 Ne5 18. Qe2 f4 19. f3 Qe6 20. b3 Nxc4 21. bxc4 Bxc3 22. Rb1 b5 23. Bb2 Bxb2 24. Rxb2 Qxc4 25. Qxc4+ bxc4 26. Rd1 Rfd8 27. Rb6 Rac8 28. Rxa6 d5 29. Ra5 d4 30. Rc5 c3 31. Kf1 Ra8 32. Rxc6 Rxa2 33. Rxc3 Rb8 34. Rcd3 Rbb2 35. Rxd4 Rf2+ 36. Kg1 Rxg2+ 37. Kh1 Rxh2+ 38. Kg1 Rhg2+ 39. Kh1 Rg3 40. R1d3 Rh3+ 41. Kg1 Ra1+ 42. Rd1 Rxd1+ 43. Rxd1 Rxf3 44. Rd7 Re3 45. Re7 h5 46. e5 Kf8 47. Re6 Kf7 48. Rf6+ Kg7 49. Rxf4 Rxe5 50. Ra4 Kf6 51. Kg2 Kg5 52. Kh3 Re3+ 53. Kg2 h4 54. Rb4 0-1